bitfinex-derivatives/quotes_BNBF0:USTF0_20250810
["timestamp","ask_amount","ask_price","bid_price","bid_amount"]
[1754801203050,0.25,816.43,815.84,1.0900299]
[1754801204448,0.25,816.43,815.85,1.0900299]
[1754801204849,0.25,816.43,815.97,1.0900299]
[1754801205248,0.25,816.43,815.98,1.0900299]
[1754801205552,0.25,816.43,815.97,1.0900299]
[1754801205851,0.25,816.43,815.98,1.0900299]
[1754801206051,0.25,816.43,815.97,1.0900299]
[1754801206953,0.25,816.43,815.98,1.0900299]
[1754801207353,0.25,816.43,815.99,1.0900299]
[1754801208353,0.25,816.43,816.0,1.0900299]
[1754801209352,0.25,816.43,816.06,0.38946673]
[1754801210454,0.25,816.43,815.88,1.63866354]
[1754801211059,0.25,816.43,815.89,1.63866354]
[1754801211258,0.25,816.43,815.85,1.63866354]
[1754801211459,0.25,816.43,815.84,1.63866354]
[1754801212555,0.25,816.43,816.0,1.63866354]
[1754801212959,0.25,816.43,816.01,1.63866354]
[1754801214259,0.362,816.43,816.01,1.63866354]
[1754801214962,0.362,816.43,816.07,1.63866354]
[1754801215461,0.25,816.43,816.08,1.63866354]
[1754801215656,0.362,816.43,816.07,1.63866354]
[1754801216157,0.362,816.43,816.08,1.63866354]
[1754801216362,0.25,816.43,816.09,1.63866354]
[1754801217858,0.21336538,816.35,816.1,1.63866354]
[1754801218563,0.21336538,816.35,816.09,1.63866354]
[1754801218759,0.21336538,816.35,815.51,2.73234571]
[1754801218760,0.21336538,816.35,816.14,1.63866354]
[1754801219361,0.21336538,816.35,816.14,0.60888977]
[1754801219864,0.21336538,816.35,815.55,2.73234571]
[1754801220165,0.21336538,816.35,815.52,2.73234571]
[1754801220666,0.21336538,816.35,815.5,2.73234571]
[1754801221166,0.21336538,816.35,815.58,2.73234571]
[1754801221661,0.21336538,816.35,815.62,2.73234571]
[1754801222162,0.21336538,816.35,815.63,2.73234571]
[1754801222564,0.21336538,816.35,815.64,2.73234571]
[1754801223166,0.21336538,816.35,815.62,2.73234571]
[1754801224769,0.21336538,816.35,815.53,2.73234571]
[1754801227271,0.21336538,816.35,815.54,2.73234571]
[1754801227967,0.21336538,816.35,815.42,2.73234571]
[1754801228268,0.21336538,816.35,815.38,2.73234571]
[1754801228773,0.21336538,816.35,815.37,2.73234571]
[1754801229469,0.21336538,816.35,815.4,2.73234571]
[1754801229871,0.21336538,816.35,815.32,2.73234571]
[1754801230368,0.21336538,816.35,815.31,2.73234571]
[1754801231872,0.21336538,816.35,815.21,2.73234571]
[1754801232075,0.21336538,816.35,815.22,0.97821651]
[1754801232370,0.21336538,816.35,815.3,2.73234571]
[1754801233473,0.21336538,816.35,815.29,2.73234571]
[1754801235078,0.21336538,816.35,814.91,3.84070087]
[1754801235079,0.21336538,816.35,815.31,2.73234571]
[1754801235476,0.21336538,816.35,815.3,2.73234571]
[1754801236575,0.21336538,816.35,815.29,2.73234571]
[1754801238080,0.21336538,816.35,815.2,2.73234571]
[1754801238578,0.21336538,816.35,815.53,2.73234571]
[1754801239482,0.21336538,816.35,816.28,1.09680142]
[1754801239679,0.21336538,816.35,816.13,0.55450115]
[1754801239883,0.21336538,816.35,815.53,2.73234571]
[1754801240778,0.21336538,816.35,815.42,2.73234571]
[1754801241282,0.21336538,816.35,815.41,2.73234571]
[1754801241884,0.21336538,816.35,815.42,2.73234571]
[1754801242386,0.21336538,816.35,815.4,2.73234571]
[1754801242882,0.21336538,816.35,815.32,2.73234571]
[1754801245980,0.21336538,816.35,815.31,2.73234571]
[1754801246983,0.21336538,816.35,815.3,2.73234571]
[1754801247985,0.21336538,816.35,815.4,2.73234571]
[1754801250590,0.21336538,816.35,815.44,2.73234571]
[1754801252090,0.21336538,816.35,815.46,2.73234571]
[1754801252588,0.21336538,816.35,815.54,2.73234571]
[1754801254290,0.21336538,816.35,815.55,2.73234571]
[1754801254791,0.21336538,816.35,815.53,2.73234571]
[1754801255890,0.21336538,816.35,815.54,2.73234571]
[1754801256385,0.21336538,816.35,815.55,2.73234571]
[1754801256787,0.21336538,816.35,815.56,2.73234571]
[1754801257892,0.21336538,816.35,815.55,2.73234571]
[1754801258392,0.21336538,816.35,815.54,2.73234571]
[1754801258888,0.21336538,816.35,815.23,3.84070087]
[1754801259092,0.21336538,816.35,815.24,0.9995701]
[1754801259292,0.21336538,816.35,815.25,0.9995701]
[1754801259489,0.21336538,816.35,815.26,0.9995701]
[1754801259694,0.21336538,816.35,815.89,1.64441817]
[1754801259891,0.21336538,816.35,815.87,1.64441817]
[1754801260490,0.21336538,816.35,815.85,1.64441817]
[1754801261194,0.21336538,816.35,815.92,1.64441817]
[1754801262496,0.21336538,816.35,816.01,1.64441817]
[1754801262693,0.21336538,816.35,816.01,0.60457939]
[1754801263096,0.21336538,816.35,815.35,2.73234571]
[1754801264198,0.21336538,816.35,815.4,2.73234571]
[1754801265694,0.21336538,816.35,815.46,2.73234571]
[1754801266897,0.21336538,816.35,815.43,2.73234571]
[1754801273907,0.21336538,816.35,815.44,1.01392987]
[1754801274105,0.21336538,816.35,815.45,1.01392987]
[1754801274302,0.21336538,816.35,815.46,1.01392987]
[1754801274514,0.21336538,816.35,815.47,1.01392987]
[1754801274716,0.21336538,816.35,815.48,1.01392987]
[1754801274916,0.21336538,816.35,815.49,1.01392987]
[1754801275117,0.21336538,816.35,815.5,1.01392987]
[1754801275318,0.21336538,816.35,815.11,3.84070087]
[1754801275516,0.21336538,816.35,815.12,1.01326297]
[1754801275720,0.21336538,816.35,815.13,1.01326297]
[1754801276020,0.21336538,816.35,815.14,1.01326297]
[1754801276215,0.21336538,816.35,815.15,1.01326297]
[1754801276414,0.21336538,816.35,815.16,1.01326297]
[1754801276619,0.21336538,816.35,815.17,1.01326297]
[1754801276819,0.21336538,816.35,815.18,1.01326297]
[1754801277016,0.21336538,816.35,815.19,1.01326297]
[1754801277216,0.21336538,816.35,815.2,1.01326297]
[1754801277519,0.21336538,816.35,815.21,1.01326297]
[1754801277715,0.21336538,816.35,816.33,1.09332004]
[1754801278216,0.21336538,816.35,816.32,1.09332004]
[1754801278616,0.21336538,816.35,816.33,1.09332004]
[1754801279220,0.21336538,816.35,815.12,2.73330011]
[1754801279221,0.21336538,816.35,816.32,1.09332004]
[1754801281220,0.21336538,816.35,816.31,1.09332004]
[1754801281824,0.21336538,816.35,816.32,1.09332004]
[1754801282325,0.21336538,816.35,816.31,1.09332004]
[1754801282626,0.21336538,816.35,816.15,1.09332004]
[1754801283321,0.21336538,816.35,816.14,1.09332004]
[1754801283723,0.21336538,816.35,816.15,1.09332004]
[1754801284024,0.21336538,816.35,816.17,1.09332004]
[1754801284524,0.21336538,816.35,816.16,1.09332004]
[1754801284821,0.21336538,816.35,816.17,1.09332004]
[1754801285325,0.21336538,816.35,816.16,1.09332004]
[1754801285525,0.21336538,816.35,816.27,1.09332004]
[1754801286224,0.21336538,816.35,816.28,1.09332004]
[1754801286619,0.21336538,816.35,816.29,1.09332004]
[1754801286822,0.21336538,816.35,816.3,1.09332004]
[1754801287321,0.21336538,816.35,816.29,1.09332004]
[1754801288424,0.21336538,816.35,816.28,1.09332004]
[1754801289526,0.21336538,816.35,816.3,1.09332004]
[1754801290328,0.21336538,816.35,816.29,1.09332004]
[1754801292229,0.21336538,816.35,816.27,1.09332004]
[1754801292825,0.21336538,816.35,816.19,1.63856399]
[1754801293131,0.21336538,816.35,816.21,1.63856399]
[1754801294028,0.21336538,816.35,816.22,1.63856399]
[1754801295429,0.21336538,816.35,816.21,1.63856399]
[1754801296030,0.21336538,816.35,816.22,1.63856399]
[1754801296226,0.21336538,816.35,816.23,1.63856399]
[1754801297126,0.21336538,816.35,816.22,1.63856399]
[1754801297629,0.21336538,816.35,816.23,1.63856399]
[1754801298230,0.21336538,816.35,816.19,1.63856399]
[1754801300029,0.21336538,816.35,815.54,2.73330011]
[1754801300030,0.21336538,816.35,816.34,1.09042739]
[1754801302326,0.21336538,816.35,816.19,1.63856399]
[1754801302528,0.21336538,816.35,816.22,1.63856399]
[1754801302728,0.21336538,816.35,816.23,1.63856399]
[1754801303536,0.21336538,816.35,816.24,1.63856399]
[1754801303934,0.21336538,816.35,816.22,1.63856399]
[1754801304232,0.21336538,816.35,816.23,1.63856399]
[1754801306430,0.21336538,816.35,816.24,1.63856399]
[1754801307031,0.21336538,816.35,816.23,1.63856399]
[1754801307335,0.21336538,816.35,816.24,1.63856399]
[1754801307830,0.21336538,816.35,816.21,1.63856399]
[1754801308037,0.21336538,816.35,816.24,1.63856399]
[1754801308236,0.21336538,816.35,816.25,1.63856399]
[1754801309631,0.21336538,816.35,816.26,1.63856399]
[1754801309836,0.21336538,816.35,816.25,1.63856399]
[1754801310231,0.21336538,816.35,816.26,1.63856399]
[1754801310737,0.21336538,816.35,816.24,1.63856399]
[1754801311036,0.21336538,816.35,816.29,1.63856399]
[1754801311232,0.21336538,816.35,816.28,1.63856399]
[1754801311533,0.21336538,816.35,816.3,1.63856399]
[1754801314341,0.21336538,816.35,816.25,1.63856399]
[1754801315035,0.5,817.05,816.28,1.63856399]
[1754801315235,0.35,817.04,816.53,1.08999066]
[1754801315438,0.361,817.04,816.51,1.08999066]
[1754801315638,0.21325882,816.86,816.51,1.08999066]
[1754801316240,0.21325882,816.86,816.5,1.08999066]
[1754801316638,0.21325882,816.86,816.52,1.08999066]
[1754801317440,0.21325882,816.86,816.51,1.08999066]
[1754801318538,0.21325882,816.86,816.5,1.08999066]
[1754801319240,0.21325882,816.86,816.51,1.08999066]
[1754801319540,0.21325882,816.86,816.5,1.08999066]
[1754801319743,0.21325882,816.86,816.51,1.08999066]
[1754801320144,0.21325882,816.86,816.52,1.08999066]
[1754801320345,0.21325882,816.86,816.51,1.08999066]
[1754801320645,0.21325882,816.86,816.57,1.08999066]
[1754801320841,0.21325882,816.86,816.64,1.08999066]
[1754801321041,0.21325882,816.86,816.67,1.08999066]
[1754801321340,0.21325882,816.86,816.66,1.08999066]
[1754801321743,0.21325882,816.86,816.68,1.08999066]
[1754801322649,0.21325882,816.86,816.72,1.08999066]
[1754801322849,0.21325882,816.86,816.69,1.08999066]
[1754801323149,0.21325882,816.86,816.7,1.08999066]
[1754801323349,0.21325882,816.86,816.69,1.08999066]
[1754801324149,0.21325882,816.86,816.71,1.08999066]
[1754801324347,0.21325882,816.86,816.68,1.08999066]
[1754801324550,0.21325882,816.86,816.66,1.08999066]
[1754801324846,0.21325882,816.86,816.67,1.08999066]
[1754801325150,0.21325882,816.86,816.69,1.08999066]
[1754801325351,0.21325882,816.86,816.68,1.08999066]
[1754801325647,0.21325882,816.86,816.67,1.08999066]
[1754801325947,0.21325882,816.86,816.71,1.08999066]
[1754801326352,0.21325882,816.86,815.85,2.73330011]
[1754801326353,0.21325882,816.86,816.76,1.08999066]
[1754801327148,0.21325882,816.86,816.78,1.08999066]
[1754801327451,0.21325882,816.86,816.75,1.08999066]
[1754801328549,0.21325882,816.86,816.72,1.08999066]
[1754801329252,0.21325882,816.86,816.71,1.08999066]
[1754801330250,0.21325882,816.86,816.69,1.08999066]
[1754801331255,0.21325882,816.86,816.68,1.08999066]
[1754801332356,0.21325882,816.86,816.67,1.08999066]
[1754801332756,0.21325882,816.86,816.54,1.08999066]
[1754801333352,0.21325882,816.86,816.53,1.08999066]
[1754801334154,0.21325882,816.86,816.35,1.63856399]
[1754801334155,0.21325882,816.86,816.54,1.08999066]
[1754801334354,0.21325882,816.86,816.53,1.08999066]
[1754801334658,0.21325882,816.86,816.35,1.63856399]
[1754801334659,0.21325882,816.86,816.54,1.08999066]
[1754801334860,0.21325882,816.86,816.55,1.08999066]
[1754801335057,0.21325882,816.86,816.56,1.08999066]
[1754801335357,0.21325882,816.86,816.55,1.08999066]
[1754801335858,0.21325882,816.86,816.56,1.08999066]
[1754801336261,0.21325882,816.86,816.58,1.08999066]
[1754801336461,0.21325882,816.86,816.57,1.08999066]
[1754801337159,0.21325882,816.86,816.58,1.08999066]
[1754801337460,0.21325882,816.86,816.57,1.08999066]
[1754801337659,0.21325882,816.86,816.6,1.08999066]
[1754801338363,0.21325882,816.86,816.46,1.63856399]
[1754801338364,0.21325882,816.86,816.59,1.08999066]
[1754801340468,0.21325882,816.86,816.58,1.08999066]
[1754801341571,0.21325882,816.86,816.57,1.08999066]
[1754801342068,0.21325882,816.86,816.58,1.08999066]
[1754801342271,0.21325882,816.86,816.57,1.08999066]
[1754801342973,0.21325882,816.86,816.74,1.08999066]
[1754801343373,0.21325882,816.86,816.73,1.08999066]
[1754801345786,0.21325882,816.86,816.46,1.08999066]
[1754801345977,0.21325882,816.86,816.43,1.08999066]
[1754801346375,0.21325882,816.86,816.42,1.08999066]
[1754801347273,0.21325882,816.86,816.41,1.08999066]
[1754801348279,0.21325882,816.86,816.42,1.08999066]
[1754801349379,0.21325882,816.86,816.43,1.08999066]
[1754801349576,0.21325882,816.86,816.42,1.08999066]
[1754801350280,0.21325882,816.86,815.48,2.73330011]
[1754801350281,0.21325882,816.86,816.43,1.08999066]
[1754801350580,0.21325882,816.86,816.42,1.08999066]
[1754801351375,0.21325882,816.86,816.45,1.08999066]
[1754801352482,0.21325882,816.86,816.48,1.08999066]
[1754801352680,0.21325882,816.86,816.28,1.63856399]
[1754801352681,0.21325882,816.86,816.47,1.08999066]
[1754801353282,0.21325882,816.86,816.48,1.08999066]
[1754801354382,0.21325882,816.86,816.49,1.08999066]
[1754801355282,0.21325882,816.86,816.53,1.08999066]
[1754801355482,0.21325882,816.86,816.54,1.08999066]
[1754801355687,0.21325882,816.86,816.56,1.08999066]
[1754801355883,0.21325882,816.86,816.6,1.08999066]
[1754801356182,0.21325882,816.86,816.65,1.08999066]
[1754801356384,0.21325882,816.86,816.7,1.08999066]
[1754801358484,0.21325882,816.86,816.71,1.08999066]
[1754801359489,0.21325882,816.86,816.74,1.08999066]
[1754801359688,0.21325882,816.86,816.75,1.08999066]
[1754801360189,0.21325882,816.86,816.73,1.08999066]
[1754801360390,0.21325882,816.86,816.74,1.08999066]
[1754801360687,0.21325882,816.86,816.71,1.08999066]
[1754801361385,0.21325882,816.86,816.72,1.08999066]
[1754801362287,0.21325882,816.86,816.73,1.08999066]
[1754801362788,0.21325882,816.86,816.71,1.08999066]
[1754801363393,0.21325882,816.86,816.72,1.08999066]
[1754801364394,0.21325882,816.86,816.73,1.08999066]
[1754801365291,0.21325882,816.86,816.75,1.08999066]
[1754801365995,0.21325882,816.86,816.74,1.08999066]
[1754801366195,0.21325882,816.86,816.73,1.08999066]
[1754801366396,0.21325882,816.86,816.74,1.08999066]
[1754801367296,0.21325882,816.86,816.76,1.08999066]
[1754801367892,0.21325882,816.86,816.72,1.08999066]
[1754801368095,0.21325882,816.86,816.67,1.08999066]
[1754801368392,0.21325882,816.86,816.68,1.08999066]
[1754801369492,0.21325882,816.86,816.7,1.08999066]
[1754801370092,0.21325882,816.86,816.71,1.08999066]
[1754801370293,0.21325882,816.86,816.72,1.08999066]
[1754801370693,0.21325882,816.86,816.73,1.08999066]
[1754801371496,0.21325882,816.86,816.52,1.63856399]
[1754801371497,0.21325882,816.86,816.74,1.08999066]
[1754801372498,0.21325882,816.86,816.75,1.08999066]
[1754801372797,0.21325882,816.86,816.64,1.08999066]
[1754801373598,0.21325882,816.86,816.66,1.08999066]
[1754801374398,0.21325882,816.86,816.67,1.08999066]
[1754801375198,0.21325882,816.86,816.68,1.08999066]
[1754801376895,0.21325882,816.86,816.47,1.63856399]
[1754801376896,0.21325882,816.86,816.69,1.08999066]
[1754801377596,0.21325882,816.86,816.71,1.08999066]
[1754801377998,0.21325882,816.86,816.76,1.08999066]
[1754801378300,0.21325882,816.86,816.81,0.42645296]
[1754801378501,0.21325882,816.86,816.66,1.63856399]
[1754801378899,0.21325882,816.86,816.67,1.63856399]
[1754801379303,0.21325882,816.86,816.65,1.63856399]
[1754801379499,0.21325882,816.86,816.66,1.63856399]
[1754801380703,0.21325882,816.86,816.69,1.63856399]
[1754801381003,0.21325882,816.86,816.68,1.63856399]
[1754801381400,0.21325882,816.86,816.73,1.63856399]
[1754801381705,0.21325882,816.86,816.68,1.63856399]
[1754801381905,0.21325882,816.86,816.64,1.63856399]
[1754801382105,0.21325882,816.86,816.57,1.63856399]
[1754801382308,0.21325882,816.86,815.74,3.84070087]
[1754801382309,0.21325882,816.86,816.48,1.63856399]
[1754801382601,0.21325882,816.86,816.44,1.63856399]
[1754801382802,0.21325882,816.86,816.56,1.63856399]
[1754801384207,0.21325882,816.86,816.55,1.63856399]
[1754801385404,0.21325882,816.86,816.54,1.63856399]
[1754801385703,0.21325882,816.86,816.55,1.63856399]
[1754801386304,0.21325882,816.86,816.54,1.63856399]
[1754801386903,0.21325882,816.86,816.55,1.63856399]
[1754801387209,0.21325882,816.86,816.54,1.63856399]
[1754801388110,0.21325882,816.86,816.51,1.63856399]
[1754801388609,0.21325882,816.86,816.55,1.63856399]
[1754801388810,0.21325882,816.86,816.59,1.63856399]
[1754801389112,0.21325882,816.86,816.6,1.63856399]
[1754801392014,0.21325882,816.86,816.59,1.63856399]
[1754801392314,0.21325882,816.86,816.6,1.63856399]
[1754801392813,0.21325882,816.86,815.92,2.73330011]
[1754801392814,0.21325882,816.86,816.59,1.63856399]
[1754801393913,0.21325882,816.86,816.52,1.63856399]
[1754801394113,0.21325882,816.86,816.49,1.63856399]
[1754801397722,0.21325882,816.86,816.48,1.63856399]
[1754801397918,0.21325882,816.86,816.51,1.63856399]
[1754801398524,0.21325882,816.86,816.53,1.63856399]
[1754801399321,0.21325882,816.86,816.51,1.63856399]
[1754801400024,0.21325882,816.86,816.5,1.63856399]
[1754801402722,0.21325882,816.86,816.49,1.63856399]
[1754801403522,0.21325882,816.86,816.5,1.63856399]
[1754801403926,0.21325882,816.86,816.56,1.63856399]
[1754801405027,0.21325882,816.86,816.48,1.63856399]
[1754801405223,0.21325882,816.86,816.49,1.63856399]
[1754801406222,0.21325882,816.86,816.4,1.63856399]
[1754801406427,0.21325882,816.86,816.41,1.63856399]
[1754801406627,0.21325882,816.86,816.42,1.63856399]
[1754801406829,0.21325882,816.86,815.31,1.092]
[1754801406830,0.25,816.71,816.24,1.63856399]
[1754801407129,0.25,816.71,816.22,1.63856399]
[1754801407429,0.36,816.71,816.22,1.63856399]
[1754801407626,0.36,816.71,816.19,1.63856399]
[1754801407830,0.342,816.66,816.19,1.63856399]
[1754801408027,0.36,816.71,816.2,1.63856399]
[1754801408229,0.36,816.71,816.18,1.63856399]
[1754801408426,0.36,816.71,816.37,1.09457237]
[1754801408628,0.25,816.71,816.37,1.09457237]
[1754801408827,0.25,816.71,816.41,1.09457237]
[1754801409031,0.342,816.66,816.41,1.09457237]
[1754801409230,0.25,816.71,816.4,1.09457237]
[1754801409628,0.342,816.66,816.4,1.09457237]
[1754801409932,0.36,816.71,816.41,1.09457237]
[1754801410132,0.36,816.71,816.39,1.09457237]
[1754801410329,0.25,816.71,816.39,1.09457237]
[1754801410527,0.36,816.71,816.39,1.09457237]
[1754801410729,0.25,816.71,816.39,1.09457237]
[1754801410932,0.36,816.71,816.39,1.09457237]
[1754801411129,0.36,816.71,816.38,1.09457237]
[1754801411333,0.25,816.71,816.38,1.09457237]
[1754801411934,0.36,816.71,816.38,1.09457237]
[1754801412133,0.36,816.71,816.36,1.09457237]
[1754801412329,0.25,816.71,816.36,1.09457237]
[1754801413234,0.25,816.71,816.37,1.09457237]
[1754801413532,0.36,816.71,816.37,1.09457237]
[1754801413731,0.36,816.71,816.4,1.09457237]
[1754801414230,0.36,816.71,816.39,1.09457237]
[1754801415135,0.36,816.71,816.38,1.09457237]
[1754801415332,0.36,816.71,816.37,1.09457237]
[1754801415737,0.342,816.66,816.37,1.09457237]
[1754801415937,0.36,816.71,816.37,1.09457237]
[1754801416434,0.36,816.71,816.26,1.09457237]
[1754801416737,0.36,816.71,816.24,1.09457237]
[1754801417234,0.36,816.71,816.23,1.09457237]
[1754801418036,0.36,816.71,816.22,1.09457237]
[1754801418237,0.36,816.71,816.21,1.09457237]
[1754801418737,0.25,816.71,816.21,1.09457237]
[1754801419236,0.25,816.71,816.2,1.09457237]
[1754801420037,0.359,816.71,816.2,1.09457237]
[1754801420233,0.25,816.71,816.2,1.09457237]
[1754801420639,0.359,816.71,816.2,1.09457237]
[1754801421138,0.25,816.71,816.19,1.09457237]
[1754801421540,0.25,816.71,816.18,1.09457237]
[1754801422441,0.34,816.66,816.18,1.09457237]
[1754801422638,0.359,816.71,816.18,1.09457237]
[1754801422938,0.359,816.71,816.02,1.09457237]
[1754801423738,0.25,816.71,816.02,1.09457237]
[1754801423939,0.359,816.71,816.01,1.09457237]
[1754801424141,0.359,816.71,816.0,1.09457237]
[1754801424342,0.25,816.71,816.01,1.09457237]
[1754801425838,0.359,816.71,816.01,1.09457237]
[1754801426044,0.34,816.66,816.03,1.09457237]
[1754801426244,0.359,816.71,816.03,1.09457237]
[1754801426445,0.359,816.71,816.08,1.09457237]
[1754801427147,0.359,816.71,816.07,1.09457237]
[1754801427741,0.344,816.66,816.08,1.09457237]
[1754801427944,0.361,816.71,816.08,1.09457237]
[1754801428745,0.361,816.71,816.09,1.09457237]
[1754801428942,0.361,816.71,816.1,1.09457237]
[1754801429140,0.361,816.71,816.09,1.09457237]
[1754801429342,0.361,816.71,816.1,1.09457237]
[1754801429844,0.361,816.71,816.11,1.09457237]
[1754801430642,0.25,816.71,816.11,1.09457237]
[1754801431245,0.361,816.71,816.11,1.09457237]
[1754801431442,0.361,816.71,816.13,1.09457237]
[1754801431643,0.25,816.71,816.13,1.09457237]
[1754801432246,0.25,816.71,816.14,1.09457237]
[1754801432643,0.361,816.71,816.14,1.09457237]
[1754801432848,0.25,816.71,816.29,1.09457237]
[1754801433347,0.344,816.66,816.3,1.09457237]
[1754801433546,0.361,816.71,816.3,1.09457237]
[1754801433747,0.361,816.71,816.34,1.09457237]
[1754801433948,0.25,816.71,816.34,1.09457237]
[1754801434244,0.25,816.71,816.35,1.09457237]
[1754801435650,0.344,816.66,816.35,1.09457237]
[1754801435850,0.361,816.71,816.35,1.09457237]
[1754801436149,0.361,816.71,816.36,1.09457237]
[1754801436552,0.25,816.71,816.36,1.09457237]
[1754801436752,0.34,816.66,816.36,1.09457237]
[1754801436947,0.359,816.71,816.33,1.09457237]
[1754801438249,0.359,816.71,816.34,1.09457237]
[1754801439253,0.359,816.71,816.35,1.09457237]
[1754801440253,0.359,816.71,816.36,1.09457237]
[1754801440453,0.359,816.71,816.36,0.39294334]
[1754801440954,0.359,816.71,816.2,1.63856399]
[1754801441353,0.359,816.71,816.22,1.63856399]
[1754801441557,0.5,816.67,816.18,1.63856399]
[1754801441754,0.5,816.67,816.13,1.63856399]
[1754801442054,0.5,816.61,815.97,1.63856399]
[1754801442655,0.5,816.61,815.93,1.63856399]
[1754801442853,0.404,816.53,815.82,1.63856399]
[1754801443053,0.404,816.53,815.84,1.63856399]
[1754801443356,0.404,816.53,815.83,1.63856399]
[1754801443357,0.295,816.53,815.83,1.63856399]
[1754801444152,0.295,816.53,815.82,1.63856399]
[1754801444954,0.5,816.45,815.82,1.63856399]
[1754801445157,0.5,816.45,815.81,1.63856399]
[1754801445853,0.5,816.45,815.79,1.63856399]
[1754801446354,0.5,816.45,815.78,1.63856399]
[1754801446557,0.5,816.45,815.73,1.63856399]
[1754801447156,0.5,816.45,815.71,1.63856399]
[1754801447359,0.5,816.45,815.72,1.63856399]
[1754801447757,0.5,816.41,815.75,1.63856399]
[1754801448155,0.5,816.41,815.74,1.63856399]
[1754801449262,0.5,816.41,815.73,1.63856399]
[1754801451162,0.5,816.41,815.72,1.63856399]
[1754801451762,0.5,816.41,815.07,2.73330011]
[1754801451763,0.5,816.41,815.73,1.63856399]
[1754801452361,0.5,816.41,815.72,1.63856399]
[1754801452761,0.5,816.41,815.77,1.63856399]
[1754801453061,0.5,816.41,815.76,1.63856399]
[1754801453260,0.5,816.41,815.77,1.63856399]
[1754801453864,0.5,816.41,815.78,1.63856399]
[1754801454065,0.5,816.41,815.77,1.63856399]
[1754801454263,0.5,816.41,815.78,1.63856399]
[1754801454764,0.5,816.41,815.77,1.63856399]
[1754801454962,0.5,816.41,815.14,2.73330011]
[1754801454963,0.5,816.41,815.75,1.63856399]
[1754801455660,0.5,816.41,815.81,1.63856399]
[1754801456163,0.5,816.41,815.7,1.63856399]
[1754801456366,0.5,816.41,815.71,1.63856399]
[1754801457165,0.5,816.41,815.66,1.63856399]
[1754801457463,0.5,816.41,815.67,1.63856399]
[1754801459061,0.5,816.41,815.66,1.63856399]
[1754801459367,0.5,816.41,815.67,1.63856399]
[1754801462166,0.5,816.41,815.68,1.63856399]
[1754801462764,0.5,816.41,815.53,1.63856399]
[1754801463969,0.5,816.41,815.49,1.63856399]
[1754801464166,0.5,816.41,815.5,1.63856399]
[1754801465270,0.5,816.41,815.51,1.63856399]
[1754801466070,0.5,816.52,815.55,1.63856399]
[1754801466272,0.5,816.52,815.63,1.63856399]
[1754801466565,0.5,816.52,815.62,1.63856399]
[1754801466971,0.5,816.52,815.65,1.63856399]
[1754801467666,0.5,816.52,815.66,1.63856399]
[1754801469873,0.5,816.52,815.65,1.63856399]
[1754801470473,0.5,816.52,815.82,1.09205263]
[1754801470674,0.5,816.52,815.85,1.09205263]
[1754801472173,0.5,816.52,815.86,1.09205263]
[1754801472573,0.5,816.52,815.84,1.09205263]
[1754801472876,0.5,816.52,815.97,1.09205263]
[1754801475280,0.5,816.54,815.98,1.09205263]
[1754801475481,0.5,816.65,816.02,1.09205263]
[1754801475880,0.5,816.65,816.03,1.09205263]
[1754801477184,0.5,816.65,816.04,1.09205263]
[1754801479183,0.5,816.65,816.05,1.09205263]
[1754801480683,0.5,816.65,816.07,1.09205263]
[1754801481385,0.5,816.65,816.08,1.09205263]
[1754801482389,0.5,816.65,816.09,1.09205263]
[1754801482788,0.5,816.65,816.07,1.09205263]
[1754801483685,0.5,816.65,815.19,2.73330011]
[1754801483686,0.5,816.65,816.1,1.09205263]
[1754801484189,0.5,816.65,816.11,1.09205263]
[1754801484486,0.5,816.65,816.13,1.09205263]
[1754801484686,0.5,816.65,816.17,1.09205263]
[1754801484888,0.5,816.65,816.17,0.40796816]
[1754801485190,0.5,816.65,816.02,1.63856399]
[1754801486194,0.5,816.65,816.03,1.63856399]
[1754801487395,0.5,816.65,816.04,1.63856399]
[1754801487793,0.5,816.65,816.03,1.63856399]
[1754801488291,0.5,816.65,816.04,1.63856399]
[1754801488794,0.5,816.65,816.03,1.63856399]
[1754801489194,0.5,816.65,816.04,1.63856399]
[1754801490190,0.5,816.65,816.05,1.63856399]
[1754801490692,0.5,816.65,816.06,1.63856399]
[1754801491192,0.5,816.65,816.07,1.63856399]
[1754801492794,0.5,816.65,816.08,1.63856399]
[1754801493294,0.5,816.65,816.09,1.63856399]
[1754801494294,0.5,816.65,816.1,1.63856399]
[1754801494790,0.5,816.65,816.1,0.63498477]
[1754801495495,0.5,816.65,815.57,2.73330011]
[1754801495893,0.5,816.65,815.55,2.73330011]
[1754801496194,0.336,816.66,815.55,2.73330011]